fUSD/lending_fUSD_20250105
["ID","MTS","AMOUNT","RATE_DAILY","PERIOD"]
[347673193,1736049040074,-500.0,0.00010134,2]
[347673194,1736049040086,-499.91887367,0.00010134,2]
[347673195,1736049040097,-513.21097852,0.00010134,2]
[347673196,1736049040108,-500.0,0.00010134,2]
[347673197,1736049040121,-500.69387564,0.00010134,2]
[347673198,1736049040135,-502.45938751,0.00010134,2]
[347673199,1736049040147,-500.0,0.00010134,2]
[347673200,1736049040159,-904.6,0.00010134,2]
[347673201,1736049040171,-500.0,0.00010134,2]
[347673202,1736049040186,-500.74908842,0.00010134,2]
[347673203,1736049040197,-502.0590203,0.00010134,2]
[347673204,1736049040209,-500.0,0.00010134,2]
[347673205,1736049040221,-503.25861751,0.00010134,2]
[347673206,1736049040232,-500.0,0.00010134,2]
[347673207,1736049040244,-500.0,0.00010134,2]
[347673208,1736049040255,-500.0,0.00010135,2]
[347673209,1736049040267,-500.0,0.00010135,2]
[347673210,1736049040279,-500.0,0.00010135,2]
[347673211,1736049040290,-501.27321127,0.00010135,2]
[347673212,1736049040301,-501.58932025,0.00010135,2]
[347673213,1736049040313,-500.0,0.00010135,2]
[347673214,1736049040324,-508.30526255,0.00010135,2]
[347673215,1736049040335,-502.9512433,0.00010135,2]
[347673216,1736049040346,-501.558269,0.00010135,2]
[347673217,1736049040357,-500.0,0.00010135,2]
[347673218,1736049040368,-501.03283416,0.00010135,2]
[347673219,1736049040379,-500.0,0.00010135,2]
[347673220,1736049040390,-530.00754464,0.00010135,2]
[347673221,1736049040401,-500.0,0.00010135,2]
[347673222,1736049040412,-501.80047511,0.00010135,2]
[347673223,1736049040423,-501.05652079,0.00010135,2]
[347673224,1736049040435,-500.0,0.00010135,2]
[347673226,1736049040446,-502.92078799,0.00010135,2]
[347673228,1736049040457,-501.88988621,0.00010135,2]
[347673229,1736049040468,-504.10211578,0.00010135,2]
[347673230,1736049040479,-500.0,0.00010135,2]
[347673231,1736049040490,-350.65620726,0.00010135,2]
[347673232,1736049040510,-151.17993541,0.00010135,2]
[347673233,1736049040521,-500.0,0.00010135,2]
[347673234,1736049040533,-500.0,0.00010135,2]
[347673235,1736049040544,-500.0,0.00010135,2]
[347673236,1736049040555,-501.74996104,0.00010135,2]
[347673237,1736049040566,-500.86595182,0.00010135,2]
[347673238,1736049040576,-504.60248712,0.00010135,2]
[347673239,1736049040587,-500.0,0.00010135,2]
[347673240,1736049040600,-500.0,0.00010135,2]
[347673241,1736049040611,-501.93358441,0.00010135,2]
[347673242,1736049040622,-500.0,0.00010135,2]
[347673243,1736049040635,-501.25161127,0.00010135,2]
[347673244,1736049040646,-502.34686933,0.00010135,2]
[347673245,1736049040658,-500.0,0.00010135,2]
[347673246,1736049040669,-500.0,0.00010135,2]
[347673247,1736049040680,-500.0,0.00010135,2]
[347673248,1736049040691,-502.71943615,0.00010135,2]
[347673249,1736049040703,-500.0,0.00010135,2]
[347673250,1736049040713,-500.15317459,0.00010135,2]
[347673251,1736049040724,-500.82269025,0.00010135,2]
[347673252,1736049040735,-646.11779855,0.00010135,2]
[347673253,1736049040746,-500.77638898,0.00010135,2]
[347673254,1736049040757,-500.29755038,0.00010135,2]
[347673255,1736049040768,-501.2462454,0.00010135,2]
[347673256,1736049040779,-501.28778186,0.00010135,2]
[347673257,1736049040790,-500.0,0.00010135,2]
[347673258,1736049040801,-504.50814447,0.00010135,2]
[347673259,1736049040812,-501.29644257,0.00010135,2]
[347673260,1736049040823,-504.93892835,0.00010135,2]
[347673261,1736049040833,-572.41465417,0.00010135,2]
[347673262,1736049040844,-594.99116827,0.00010135,2]
[347673263,1736049040855,-500.0,0.00010135,2]
[347673264,1736049040866,-500.0,0.00010135,2]
[347673265,1736049040877,-504.48339254,0.00010135,2]
[347673266,1736049040888,-500.0,0.00010135,2]
[347673267,1736049040900,-500.0,0.00010135,2]
[347673268,1736049040911,-502.59370059,0.00010135,2]
[347673269,1736049040923,-503.64006032,0.00010135,2]
[347673270,1736049040934,-500.0,0.00010135,2]
[347673271,1736049040945,-502.96372204,0.00010135,2]
[347673272,1736049040956,-511.607824,0.00010135,2]
[347673273,1736049040968,-500.0,0.00010135,2]
[347673274,1736049040979,-509.86984762,0.00010135,2]
[347673275,1736049040989,-500.71347909,0.00010135,2]
[347673276,1736049040998,-500.0,0.00010135,2]
[347673277,1736049041007,-500.0,0.00010135,2]
[347673278,1736049041016,-500.0,0.00010135,2]
[347673279,1736049041025,-501.20413666,0.00010135,2]
[347673280,1736049041035,-506.17783906,0.00010135,2]
[347673281,1736049041044,-504.33926259,0.00010135,2]
[347673282,1736049041053,-517.14655123,0.00010135,2]
[347673283,1736049041062,-503.47505369,0.00010135,2]
[347673284,1736049041071,-500.0,0.00010135,2]
[347673285,1736049041080,-502.42630998,0.00010135,2]
[347673286,1736049041090,-500.0,0.00010135,2]
[347673287,1736049041099,-504.17160931,0.00010135,2]
[347673288,1736049041108,-506.00601084,0.00010135,2]
[347673289,1736049041328,-501.905774,0.00010135,2]
[347673290,1736049041344,-500.0,0.00010135,2]
[347673291,1736049041357,-502.6920293,0.00010135,2]
[347673292,1736049041366,-491.25641123,0.00010135,2]
[347673293,1736049041375,-500.0,0.00010135,2]
[347673294,1736049041384,-506.11467375,0.00010135,2]
[347673295,1736049041393,-506.34983133,0.00010135,2]
[347673296,1736049041403,-500.0,0.00010135,2]
[347673297,1736049041412,-500.0,0.00010135,2]
[347673298,1736049041421,-500.0,0.00010135,2]
[347673299,1736049041430,-504.16810649,0.00010135,2]
[347673300,1736049041439,-525.63,0.00010135,2]
[347673301,1736049041449,-500.0,0.00010135,2]
[347673302,1736049041458,-507.10422899,0.00010135,2]
[347673303,1736049041467,-500.0,0.00010135,2]
[347673304,1736049041476,-501.53230912,0.00010135,2]
[347673305,1736049041485,-500.0,0.00010135,2]
[347673306,1736049041494,-500.0,0.00010135,2]
[347673307,1736049041504,-502.56826175,0.00010135,2]
[347673308,1736049041513,-500.76343125,0.00010135,2]
[347673309,1736049041523,-503.97343488,0.00010135,2]
[347673310,1736049041531,-501.35344611,0.00010135,2]
[347673311,1736049041540,-500.0,0.00010135,2]
[347673312,1736049041549,-500.0,0.00010135,2]
[347673313,1736049041558,-500.0,0.00010135,2]
[347673314,1736049041567,-501.38065351,0.00010135,2]
[347673315,1736049041576,-503.55432034,0.00010135,2]
[347673316,1736049041585,-113.08479851,0.00010135,2]
[347673317,1736049041599,-386.91520149,0.00010135,2]
[347673318,1736049041607,-500.0,0.00010135,2]
[347673319,1736049041616,-547.73,0.00010135,2]
[347673320,1736049041626,-500.0,0.00010135,2]
[347673321,1736049041635,-503.59491346,0.00010135,2]
[347673322,1736049041644,-500.79814705,0.00010135,2]
[347673323,1736049041653,-500.52716983,0.00010135,2]
[347673324,1736049041663,-506.68632458,0.00010135,2]
[347673325,1736049041672,-500.0,0.00010135,2]
[347673326,1736049041681,-500.0,0.00010135,2]
[347673327,1736049041691,-500.74685902,0.00010135,2]
[347673328,1736049041700,-502.01765803,0.00010135,2]
[347673329,1736049041709,-501.40913599,0.00010135,2]
[347673330,1736049041718,-501.49377466,0.00010135,2]
[347673331,1736049041727,-502.02177539,0.00010135,2]
[347673332,1736049041736,-500.22884036,0.00010135,2]
[347673333,1736049041746,-500.0,0.00010135,2]
[347673334,1736049041755,-500.0,0.00010135,2]
[347673335,1736049041766,-500.18684264,0.00010135,2]
[347673336,1736049041776,-500.0,0.00010135,2]
[347673337,1736049041786,-503.1817365,0.00010135,2]
[347673338,1736049041796,-503.61277848,0.00010135,2]
[347673339,1736049041806,-500.0,0.00010135,2]
[347673340,1736049041815,-500.0,0.00010135,2]
[347673341,1736049041824,-500.0,0.00010135,2]
[347673342,1736049041833,-502.68056671,0.00010135,2]
[347673343,1736049041842,-503.03144045,0.00010135,2]
[347673344,1736049041851,-500.0,0.00010135,2]
[347673345,1736049041860,-500.0,0.00010135,2]
[347673346,1736049041870,-501.12317539,0.00010135,2]
[347673347,1736049041879,-500.0,0.00010135,2]
[347673348,1736049041888,-495.91015615,0.00010135,2]
[347673349,1736049041896,-608.50597789,0.00010135,2]
[347673350,1736049041905,-582.97,0.00010135,2]
[347673351,1736049041914,-500.0,0.00010135,2]
[347673352,1736049041924,-503.07327503,0.00010135,2]
[347673353,1736049041933,-513.57,0.00010135,2]
[347673354,1736049041944,-500.22837176,0.00010135,2]
[347673355,1736049041957,-500.0,0.00010135,2]
[347673356,1736049041967,-619.21238808,0.00010135,2]
[347673357,1736049041978,-500.84564776,0.00010135,2]
[347673358,1736049041987,-503.74452613,0.00010135,2]
[347673359,1736049042000,-500.0,0.00010135,2]
[347673360,1736049042011,-500.81905068,0.00010135,2]
[347673361,1736049042021,-500.0,0.00010135,2]
[347673362,1736049042031,-500.0,0.00010135,2]
[347673363,1736049042040,-501.03007094,0.00010135,2]
[347673364,1736049042049,-502.94226262,0.00010135,2]
[347673365,1736049042058,-500.0,0.00010135,2]
[347673366,1736049042067,-503.17772853,0.00010135,2]
[347673367,1736049042076,-500.0,0.00010135,2]
[347673368,1736049042086,-500.0,0.00010135,2]
[347673369,1736049042095,-500.0,0.00010135,2]
[347673370,1736049042104,-500.0,0.00010135,2]
[347673371,1736049042114,-502.48534603,0.00010135,2]
[347673372,1736049042122,-500.0,0.00010135,2]
[347673373,1736049042131,-500.95341616,0.00010135,2]
[347673374,1736049042140,-500.0,0.00010135,2]
[347673375,1736049042149,-500.0,0.00010135,2]
[347673376,1736049042158,-501.66032029,0.00010135,2]
[347673377,1736049042168,-504.43643742,0.00010135,2]
[347673378,1736049042177,-500.0,0.00010135,2]
[347673379,1736049042186,-500.23199633,0.00010135,2]
[347673380,1736049042195,-504.42167572,0.00010135,2]
[347673381,1736049042204,-591.43,0.00010135,2]
[347673382,1736049042213,-503.7051515,0.00010135,2]
[347673383,1736049042222,-502.73763418,0.00010135,2]
[347673384,1736049042231,-501.95156768,0.00010135,2]
[347673385,1736049042241,-500.0,0.00010135,2]
[347673386,1736049042250,-625.69563402,0.00010135,2]
[347673387,1736049042259,-501.63363072,0.00010135,2]
[347673388,1736049042269,-500.83806939,0.00010135,2]
[347673389,1736049042278,-501.84198375,0.00010135,2]
[347673390,1736049042287,-500.0,0.00010135,2]
[347673391,1736049042296,-500.89132636,0.00010135,2]
[347673392,1736049042305,-502.15121756,0.00010135,2]
[347673393,1736049042314,-500.18221712,0.00010135,2]
[347673394,1736049042323,-501.49149118,0.00010135,2]
[347673395,1736049042332,-500.96636513,0.00010135,2]
[347673396,1736049042342,-503.30308342,0.00010135,2]
[347673397,1736049042351,-500.0,0.00010135,2]
[347673398,1736049042360,-500.96467477,0.00010135,2]
[347673399,1736049042369,-500.0,0.00010135,2]
[347673400,1736049042378,-501.43490123,0.00010135,2]
[347673401,1736049042387,-500.0,0.00010135,2]
[347673402,1736049042396,-516.80274744,0.00010135,2]
[347673403,1736049042405,-501.69466639,0.00010135,2]
[347673404,1736049042415,-501.15158696,0.00010135,2]
[347673405,1736049042425,-500.0,0.00010135,2]
[347673406,1736049042433,-500.0,0.00010135,2]
[347673407,1736049042442,-500.46191294,0.00010135,2]
[347673408,1736049042450,-500.34164399,0.00010135,2]
[347673409,1736049042460,-500.0,0.00010135,2]
[347673410,1736049042471,-500.0,0.00010135,2]
[347673411,1736049042481,-502.19923924,0.00010135,2]
[347673412,1736049042491,-500.0,0.00010135,2]
[347673413,1736049042500,-570.91,0.00010135,2]
[347673414,1736049042510,-501.13798158,0.00010135,2]
[347673415,1736049042520,-500.0,0.00010135,2]
[347673416,1736049042529,-500.0,0.00010135,2]
[347673417,1736049042539,-587.68,0.00010135,2]
[347673418,1736049042550,-502.95648178,0.00010135,2]
[347673419,1736049042559,-501.368799,0.00010135,2]
[347673420,1736049042568,-500.0,0.00010135,2]
[347673421,1736049042577,-500.0,0.00010135,2]
[347673422,1736049042588,-502.77623663,0.00010135,2]
[347673423,1736049042598,-500.0,0.00010135,2]
[347673427,1736049042609,-207.96294637,0.00010135,2]
[347673429,1736049042618,-500.0,0.00010135,2]
[347673430,1736049042627,-500.0,0.00010135,2]
[347673431,1736049042636,-500.45570444,0.00010135,2]
[347673432,1736049042645,-500.0,0.00010135,2]
[347673433,1736049042656,-500.0,0.00010135,2]
[347673434,1736049042665,-500.0,0.00010135,2]
[347673435,1736049042676,-500.0,0.00010135,2]
[347673436,1736049042686,-500.0,0.00010135,2]
[347673437,1736049042695,-500.0,0.00010135,2]
[347673438,1736049042704,-500.0,0.00010135,2]
[347673439,1736049042713,-502.50616433,0.00010135,2]
[347673440,1736049042723,-500.0,0.00010135,2]
[347673441,1736049042732,-500.0,0.00010135,2]
[347673442,1736049042741,-500.0,0.00010135,2]
[347673443,1736049042751,-500.0,0.00010135,2]
[347673444,1736049042761,-500.0,0.00010135,2]
[347673445,1736049042771,-499.49799233,0.00010135,2]
[347673446,1736049042780,-496.83729137,0.00010135,2]
[347673447,1736049042791,-500.0,0.00010135,2]
[347673448,1736049042800,-500.0,0.00010135,2]
[347673449,1736049042811,-500.0,0.00010135,2]
[347673450,1736049042823,-500.0,0.00010135,2]
[347673451,1736049042833,-500.0,0.00010135,2]
[347673452,1736049042842,-500.0,0.00010135,2]
[347673453,1736049042852,-500.0,0.00010135,2]
[347673454,1736049042861,-501.23951665,0.00010135,2]
[347673455,1736049042872,-500.0,0.00010135,2]
[347673456,1736049042881,-500.0,0.00010135,2]
[347673457,1736049042890,-500.0,0.00010135,2]
[347673458,1736049042899,-500.0,0.00010135,2]
[347673459,1736049042907,-500.0,0.00010135,2]
[347673460,1736049042917,-292.08003825,0.00010135,2]
[347673461,1736049042927,-500.0,0.00010135,2]
[347673462,1736049042936,-500.0,0.00010135,2]
[347673463,1736049042945,-500.0,0.00010135,2]
[347673464,1736049042955,-500.0,0.00010135,2]
[347673465,1736049042964,-379.2692509,0.00010135,2]
[347673466,1736049042973,-500.0,0.00010135,2]
[347673467,1736049042983,-518.2441143,0.00010135,2]
[347673468,1736049042992,-500.0,0.00010135,2]
[347673469,1736049043001,-500.0,0.00010135,2]
[347673470,1736049043011,-500.0,0.00010135,2]
[347673471,1736049043020,-500.0,0.00010135,2]
[347673472,1736049043031,-500.0,0.00010135,2]
[347673473,1736049043040,-517.88493626,0.00010135,2]
[347673474,1736049043049,-500.55677765,0.00010135,2]
[347673475,1736049043058,-500.0,0.00010135,2]
[347673476,1736049043067,-500.51971381,0.00010135,2]
[347673477,1736049043076,-500.51407582,0.00010135,2]
[347673478,1736049043085,-500.0,0.00010135,2]
[347673479,1736049043096,-1996.91,0.00010135,2]
[347673480,1736049043106,-505.19416901,0.00010135,2]
[347673481,1736049043116,-500.0,0.00010135,2]
[347673482,1736049043125,-500.0,0.00010135,2]
[347673483,1736049043134,-500.0,0.00010135,2]
[347673484,1736049043143,-500.0,0.00010135,2]
[347673485,1736049043153,-205.67408064,0.00010135,2]
[347673486,1736049043162,-604.35579682,0.00010135,2]
[347673487,1736049043172,-301.53017367,0.00010135,2]
[347673488,1736049043181,-160.53444744,0.00010135,2]
[347673489,1736049043190,-500.0,0.00010135,2]
[347673490,1736049043200,-501.28843741,0.00010135,2]
[347673491,1736049043210,-500.0,0.00010135,2]
[347673492,1736049043219,-424.50098031,0.00010135,2]
[347673493,1736049043228,-500.0,0.00010135,2]
[347673494,1736049043238,-500.0,0.00010135,2]
[347673495,1736049043248,-500.0,0.00010135,2]
[347673496,1736049043257,-500.0,0.00010135,2]
[347673497,1736049043266,-633.60718522,0.00010135,2]
[347673498,1736049043275,-500.0,0.00010135,2]
[347673499,1736049043285,-500.0,0.00010135,2]
[347673500,1736049043295,-500.0,0.00010135,2]
[347673501,1736049043304,-500.0,0.00010135,2]
[347673502,1736049043314,-500.0,0.00010135,2]
[347673503,1736049043323,-500.0,0.00010135,2]
[347673504,1736049043332,-500.0,0.00010135,2]
[347673505,1736049043342,-500.0,0.00010135,2]
[347673506,1736049043352,-500.0,0.00010135,2]
[347673507,1736049043362,-500.0,0.00010135,2]
[347673508,1736049043371,-500.0,0.00010135,2]
[347673509,1736049043381,-151.0,0.00010135,2]
[347673510,1736049043390,-313.519713,0.00010135,2]
[347673511,1736049043400,-500.0,0.00010135,2]
[347673512,1736049043409,-200.69856461,0.00010135,2]
[347673513,1736049043418,-500.0,0.00010135,2]
[347673514,1736049043428,-500.0,0.00010135,2]
[347673515,1736049043437,-2860.72,0.00010135,2]
[347673516,1736049043447,-495.91,0.00010135,2]
[347673517,1736049043456,-492.33,0.00010135,2]
[347673518,1736049043467,-506.26,0.00010135,2]
[347673519,1736049043476,-773.57,0.00010136,2]
[347673520,1736049043485,-500.0,0.00010136,2]
[347673521,1736049043495,-662.55,0.00010136,2]
[347673522,1736049043504,-945.12,0.00010136,2]
[347673523,1736049043513,-500.0,0.00010136,2]
[347673524,1736049043523,-500.0,0.00010136,2]
[347673525,1736049043532,-1301.06,0.00010136,2]
[347673526,1736049043542,-592.32,0.00010137,2]
[347673527,1736049043552,-5558.0,0.000104,3]
[347673528,1736049043561,-500.0,0.00010407,2]
[347673529,1736049043571,-200.40000676,0.00010407,2]
[347673530,1736049043581,-500.0,0.00010407,2]
[347673531,1736049043590,-2045.31,0.00010407,2]
[347673532,1736049043600,-950.75,0.00010407,2]
[347673533,1736049043609,-500.0,0.00010407,2]
[347673534,1736049043619,-592.19,0.00010407,2]
[347673535,1736049043629,-500.0,0.00010407,2]
[347673536,1736049043641,-500.0,0.00010407,2]
[347673537,1736049043650,-1362.81,0.00010407,2]
[347673538,1736049043660,-500.0,0.00010407,2]
[347673539,1736049043669,-500.0,0.00010407,2]
[347673540,1736049043678,-500.0,0.00010407,2]
[347673541,1736049043688,-804.62,0.00010407,2]
[347673542,1736049043698,-500.0,0.00010407,2]
[347673543,1736049043709,-809.51,0.00010407,2]
[347673544,1736049043721,-500.0,0.00010407,2]
[347673545,1736049043732,-500.0,0.00010407,2]
[347673546,1736049043741,-500.0,0.00010407,2]
[347673547,1736049043750,-504.99,0.00010407,2]
[347673548,1736049043760,-1298.8,0.00010407,2]
[347673549,1736049043769,-500.0,0.00010407,2]
[347673550,1736049043778,-500.0,0.00010407,2]
[347673551,1736049043788,-503.08281749,0.00010407,2]
[347673552,1736049043798,-500.0,0.00010407,2]
[347673553,1736049043808,-680.54,0.00010408,2]
[347673554,1736049043816,-346.91,0.00010408,2]
[347673555,1736049043826,-500.0,0.00010408,2]
[347673556,1736049043838,-571.00287736,0.00010408,2]
[347673557,1736049043848,-506.51054733,0.00010408,2]
[347673558,1736049043859,-390.54903645,0.00010408,2]
[347673559,1736049043868,-500.0,0.00010408,2]
[347673560,1736049043878,-500.0,0.00010408,2]
[347673561,1736049043887,-613.33,0.00010408,2]
[347673562,1736049043897,-500.0,0.00010408,2]
[347673563,1736049043906,-500.0,0.00010408,2]
[347673564,1736049043915,-500.0,0.00010408,2]
[347673565,1736049043927,-500.0,0.00010408,2]
[347673566,1736049043938,-500.0,0.00010408,2]
[347673567,1736049043947,-500.0,0.00010408,2]
[347673568,1736049043961,-500.0,0.00010408,2]
[347673569,1736049043971,-500.0,0.00010408,2]
[347673570,1736049043980,-588.85,0.00010408,2]
[347673571,1736049043989,-500.0,0.00010408,2]
[347673572,1736049043999,-500.0,0.00010408,2]
[347673573,1736049044009,-216.53,0.00010408,2]
[347673574,1736049044019,-495.0,0.00010408,2]
[347673575,1736049044028,-406.53,0.00010408,2]
[347673576,1736049044037,-500.0,0.00010408,2]
[347673577,1736049044047,-216.58066,0.00010408,2]
[347673578,1736049044056,-500.0,0.00010408,2]
[347673579,1736049044065,-500.0,0.00010408,2]
[347673580,1736049044075,-500.0,0.00010408,2]
[347673581,1736049044084,-500.0,0.00010408,2]
[347673582,1736049044095,-209.4,0.00010408,2]
[347673583,1736049044104,-500.0,0.00010408,2]
[347673584,1736049044114,-500.0,0.00010408,2]
[347673585,1736049044124,-500.0,0.00010408,2]
[347673586,1736049044133,-500.0,0.00010408,2]
[347673587,1736049044143,-500.0,0.00010408,2]
[347673588,1736049044152,-500.0,0.00010408,2]
[347673589,1736049044161,-500.0,0.00010408,2]
[347673590,1736049044171,-500.0,0.00010408,2]
[347673591,1736049044181,-570.07,0.00010408,2]
[347673592,1736049044190,-271.09775,0.00010408,2]
[347673593,1736049044199,-626.8,0.00010408,2]
[347673594,1736049044208,-500.0,0.00010408,2]
[347673595,1736049044217,-500.0,0.00010408,2]
[347673596,1736049044335,-500.0,0.00010408,2]
[347673597,1736049044363,-500.0,0.00010408,2]
[347673598,1736049044374,-500.0,0.00010408,2]
[347673599,1736049044384,-500.0,0.00010408,2]
[347673600,1736049044394,-500.0,0.00010408,2]
[347673601,1736049044403,-500.0,0.00010408,2]
[347673602,1736049044413,-500.0,0.00010408,2]
[347673603,1736049044423,-500.0,0.00010408,2]
[347673604,1736049044432,-500.0,0.00010408,2]
[347673605,1736049044442,-585.18,0.00010408,2]
[347673606,1736049044453,-500.0,0.00010408,2]
[347673607,1736049044463,-500.0,0.00010408,2]
[347673608,1736049044472,-568.98,0.00010408,2]
[347673609,1736049044482,-500.0,0.00010408,2]
[347673610,1736049044492,-500.0,0.00010408,2]
[347673611,1736049044503,-500.0,0.00010408,2]
[347673612,1736049044514,-500.0,0.00010408,2]
[347673613,1736049044524,-500.0,0.00010408,2]
[347673614,1736049044534,-500.0,0.00010408,2]
[347673615,1736049044544,-500.0,0.00010408,2]
[347673616,1736049044553,-500.0,0.00010408,2]
[347673617,1736049044564,-500.0,0.00010408,2]
[347673618,1736049044573,-871.92,0.00010408,2]
[347673619,1736049044582,-500.0,0.00010408,2]
[347673620,1736049044592,-500.0,0.00010408,2]
[347673621,1736049044603,-500.0,0.00010408,2]
[347673622,1736049044613,-500.0,0.00010408,2]
[347673623,1736049044622,-351.66,0.00010408,2]
[347673624,1736049044633,-500.0,0.00010408,2]
[347673625,1736049044643,-500.0,0.00010408,2]
[347673626,1736049044654,-500.0,0.00010408,2]
[347673627,1736049044663,-461.26,0.00010408,2]
[347673628,1736049044673,-321.01,0.00010408,2]
[347673629,1736049044682,-500.0,0.00010408,2]
[347673630,1736049044693,-500.0,0.00010408,2]
[347673631,1736049044703,-255.77,0.00010408,2]
[347673632,1736049044712,-500.0,0.00010408,2]
[347673633,1736049044722,-246.75348204,0.00010408,2]
[347673634,1736049044731,-500.0,0.00010408,2]
[347673635,1736049044740,-500.0,0.00010408,2]
[347673636,1736049044750,-500.0,0.00010408,2]
[347673637,1736049044759,-500.0,0.00010408,2]
[347673638,1736049044770,-547.8191677,0.00010408,2]
[347673639,1736049044782,-500.0,0.00010408,2]
[347673640,1736049044791,-500.0,0.00010408,2]
[347673641,1736049044801,-503.69742786,0.00010408,2]
[347673642,1736049044811,-500.0,0.00010408,2]
[347673643,1736049044821,-504.21455759,0.00010408,2]
[347673644,1736049044832,-503.07117493,0.00010408,2]
[347673645,1736049044842,-501.12120225,0.00010408,2]
[347673646,1736049044853,-500.0,0.00010408,2]
[347673647,1736049044863,-502.14068932,0.00010408,2]
[347673648,1736049044874,-502.24264529,0.00010408,2]
[347673649,1736049044883,-500.0,0.00010408,2]
[347673650,1736049044893,-500.5030024,0.00010408,2]
[347673651,1736049044903,-500.0,0.00010408,2]
[347673652,1736049044912,-601.74003492,0.00010408,2]
[347673653,1736049044922,-506.53538198,0.00010408,2]
[347673654,1736049044932,-504.25814367,0.00010408,2]
[347673655,1736049044941,-502.03115034,0.00010408,2]
[347673656,1736049044951,-502.8008447,0.00010408,2]
[347673657,1736049044961,-501.72286133,0.00010408,2]
[347673658,1736049044971,-501.25614265,0.00010408,2]
[347673659,1736049044980,-500.0,0.00010408,2]
[347673660,1736049044989,-502.13490203,0.00010408,2]
[347673661,1736049044999,-500.97769883,0.00010408,2]
[347673662,1736049045008,-500.60264665,0.00010408,2]
[347673663,1736049045018,-500.0,0.00010408,2]
[347673664,1736049045027,-502.49912951,0.00010408,2]
[347673665,1736049045036,-501.57917275,0.00010408,2]
[347673666,1736049045046,-500.0,0.00010408,2]
[347673667,1736049045055,-500.0,0.00010408,2]
[347673668,1736049045065,-501.54035636,0.00010408,2]
[347673669,1736049045074,-500.0,0.00010408,2]
[347673670,1736049045084,-500.0,0.00010408,2]
[347673671,1736049045094,-501.41416726,0.00010408,2]
[347673672,1736049045103,-500.0,0.00010408,2]
[347673673,1736049045113,-745.05,0.00010408,2]
[347673674,1736049045123,-502.53338619,0.00010408,2]
[347673675,1736049045133,-500.0,0.00010408,2]
[347673676,1736049045142,-575.28499258,0.00010408,2]
[347673677,1736049045151,-500.0,0.00010408,2]
[347673678,1736049045160,-500.0,0.00010408,2]
[347673679,1736049045170,-667.38,0.00010408,2]
[347673680,1736049045180,-500.0,0.00010408,2]
[347673681,1736049045190,-500.0,0.00010408,2]
[347673682,1736049045199,-1837.4,0.00010408,2]
[347673683,1736049045209,-500.0,0.00010408,2]
[347673684,1736049045218,-500.0,0.00010408,2]
[347673685,1736049045228,-927.68,0.00010408,2]
[347673686,1736049045238,-500.0,0.00010408,2]
[347673687,1736049045248,-500.0,0.00010408,2]
[347673688,1736049045258,-1657.1,0.00010408,2]
[347673689,1736049045267,-500.0,0.00010408,2]
[347673690,1736049045276,-500.0,0.00010408,2]
[347673691,1736049045286,-3477.61,0.00010408,2]
[347673692,1736049045295,-173.66149643,0.00010408,2]
[347673693,1736049045305,-500.0,0.00010408,2]
[347673694,1736049045314,-706.57,0.00010408,2]
[347673695,1736049045323,-500.0,0.00010408,2]
[347673696,1736049045333,-500.0,0.00010408,2]
[347673697,1736049045342,-500.0,0.00010408,2]
[347673698,1736049045352,-541.84,0.00010408,2]